fUSD/lending_fUSD_20260506
["ID","MTS","AMOUNT","RATE_DAILY","PERIOD"]
[421721929,1778063443000,-172.26,0.00028134,2]
[421721933,1778063443000,-174.95,0.00028745,2]
[421721925,1778063443000,-1000.0,0.0002771,2]
[421721926,1778063443000,-2000.0,0.0002777,2]
[421721924,1778063443000,-158.98,0.00027397,2]
[421721920,1778063443000,-219.7,0.00026296,2]
[421721923,1778063443000,-159.22877133,0.000273,30]
[421721922,1778063443000,-196.79,0.00027168,2]
[421721927,1778063443000,-1758.47,0.00027786,2]
[421721986,1778063444000,-219.7,0.0003221,5]
[421721977,1778063444000,-527.25455026,0.000318,2]
[421721976,1778063444000,-527.25455026,0.000318,2]
[421721975,1778063444000,-527.25455028,0.000318,2]
[421721969,1778063444000,-284.0,0.00031229,30]
[421721971,1778063444000,-405.0,0.00031233,120]
[421721973,1778063444000,-2000.0,0.00031242,2]
[421721972,1778063444000,-243.0,0.00031233,120]
[421721968,1778063444000,-151.0,0.00031229,30]
[421721970,1778063444000,-675.0,0.00031233,120]
[421721987,1778063444000,-2503.31,0.00032219,10]
[421721974,1778063444000,-2023.0,0.000315,2]
[421721978,1778063444000,-814.22363055,0.00031848,2]
[421721982,1778063444000,-205.65806419,0.00032,120]
[421721981,1778063444000,-172.60336267,0.00032,120]
[421721988,1778063444000,-152.0,0.00032228,30]
[421721983,1778063444000,-193.75136751,0.00032,120]
[421721985,1778063444000,-2446.02,0.00032209,10]
[421721980,1778063444000,-814.22363055,0.00031979,2]
[421721984,1778063444000,-3056.26088065,0.00032147,2]
[421721966,1778063444000,-151.0,0.00031229,30]
[421721991,1778063444000,-151.0,0.00032229,30]
[421721990,1778063444000,-151.0,0.00032229,30]
[421721992,1778063444000,-284.0,0.00032229,30]
[421722001,1778063444000,-500.0,0.00032358,2]
[421722000,1778063444000,-160.1,0.00032349,2]
[421721989,1778063444000,-262.0,0.00032229,30]
[421721965,1778063444000,-262.0,0.00031229,30]
[421721952,1778063444000,-500.0,0.00031164,2]
[421721960,1778063444000,-500.0,0.00031164,2]
[421721938,1778063444000,-174.95,0.00029232,7]
[421721936,1778063444000,-200.0,0.00028865,2]
[421721937,1778063444000,-174.78,0.00029232,7]
[421721939,1778063444000,-150.0,0.00029534,2]
[421721940,1778063444000,-502.0,0.00029716,4]
[421721941,1778063444000,-219.7,0.00030239,2]
[421721942,1778063444000,-657.4,0.00030352,2]
[421721948,1778063444000,-500.0,0.00031164,2]
[421721946,1778063444000,-500.0,0.00031164,2]
[421721944,1778063444000,-150.0,0.00031011,2]
[421721945,1778063444000,-162.0,0.0003112,120]
[421721949,1778063444000,-530.94684658,0.00031164,2]
[421721943,1778063444000,-502.0,0.00031005,6]
[421721947,1778063444000,-500.0,0.00031164,2]
[421721951,1778063444000,-500.0,0.00031164,2]
[421721950,1778063444000,-500.0,0.00031164,2]
[421721953,1778063444000,-500.0,0.00031164,2]
[421721963,1778063444000,-152.0,0.00031228,30]
[421721962,1778063444000,-2038.35,0.00031219,10]
[421721961,1778063444000,-35511.4792507,0.00031165,2]
[421721964,1778063444000,-161.0,0.00031228,30]
[421721999,1778063444000,-502.0,0.00032294,7]
[421721954,1778063444000,-500.0,0.00031164,2]
[421721957,1778063444000,-500.0,0.00031164,2]
[421721959,1778063444000,-500.0,0.00031164,2]
[421721956,1778063444000,-500.0,0.00031164,2]
[421721955,1778063444000,-500.0,0.00031164,2]
[421721958,1778063444000,-500.0,0.00031164,2]
[421721993,1778063444000,-3109.73,0.00032237,10]
[421721979,1778063444000,-814.22363055,0.0003194,2]
[421721997,1778063444000,-256.8305,0.00032259,2]
[421722031,1778063444000,-151.0,0.00033229,30]
[421722029,1778063444000,-152.0,0.00033228,30]
[421722028,1778063444000,-500.0,0.0003317,2]
[421722024,1778063444000,-193.75136751,0.00033,120]
[421722032,1778063444000,-151.0,0.00033229,30]
[421722030,1778063444000,-262.0,0.00033229,30]
[421722036,1778063444000,-104647.2930398,0.0003385,8]
[421722045,1778063444000,-500.0,0.00034173,5]
[421722047,1778063444000,-267.02889892,0.00034173,5]
[421722048,1778063444000,-160.1,0.00034173,2]
[421722038,1778063444000,-3056.26088062,0.0003387,2]
[421722037,1778063444000,-47459.74175328,0.0003385,2]
[421722046,1778063444000,-402.43164233,0.00034173,5]
[421722039,1778063444000,-172.60336267,0.000339,120]
[421722042,1778063444000,-8223.50016625,0.00033935,2]
[421722040,1778063444000,-205.65806419,0.000339,120]
[421722043,1778063444000,-223.21,0.00034,30]
[421722044,1778063444000,-500.0,0.00034173,5]
[421722041,1778063444000,-193.75136751,0.000339,120]
[421722049,1778063444000,-151.0,0.00034182,14]
[421722052,1778063444000,-214.60306816,0.00034183,30]
[421722053,1778063444000,-500.0,0.00034183,30]
[421721998,1778063444000,-8223.50016633,0.00032259,2]
[421722054,1778063444000,-151.0,0.00034183,30]
[421722056,1778063444000,-151.0,0.00034183,30]
[421722050,1778063444000,-219.7,0.00034182,7]
[421722055,1778063444000,-500.0,0.00034183,30]
[421722033,1778063444000,-284.0,0.00033229,30]
[421722034,1778063444000,-502.0,0.00033584,9]
[421722051,1778063444000,-214.60306816,0.00034183,7]
[421722025,1778063444000,-165.0,0.00033,14]
[421722026,1778063444000,-3056.26088062,0.00033008,2]
[421721995,1778063444000,-2726.504,0.00032247,31]
[421721996,1778063444000,-266.216,0.00032247,31]
[421722003,1778063444000,-500.0,0.00032358,7]
[421722004,1778063444000,-500.0,0.00032358,2]
[421722002,1778063444000,-200.0,0.00032358,30]
[421722005,1778063444000,-522.37573367,0.00032358,2]
[421722008,1778063444000,-204.17098994,0.00032358,2]
[421722009,1778063444000,-500.0,0.00032358,2]
[421722006,1778063444000,-500.0,0.00032358,2]
[421722010,1778063444000,-500.0,0.00032358,2]
[421722007,1778063444000,-201.0073575,0.00032358,2]
[421722012,1778063444000,-1401.9966491,0.00032359,2]
[421722011,1778063444000,-321.44676883,0.00032358,2]
[421721994,1778063444000,-1698.62,0.00032237,10]
[421722016,1778063444000,-150.0,0.00032562,2]
[421722013,1778063444000,-83164.1425048,0.00032359,2]
[421722035,1778063444000,-694.55742348,0.00033835,2]
[421722021,1778063444000,-243.0,0.00032795,120]
[421722022,1778063444000,-172.60336267,0.00033,120]
[421722017,1778063444000,-162.0,0.00032675,120]
[421722023,1778063444000,-205.65806419,0.00033,120]
[421722018,1778063444000,-9887.41576193,0.00032682,2]
[421722020,1778063444000,-405.0,0.00032795,120]
[421722014,1778063444000,-206003.5840455,0.00032359,2]
[421722027,1778063444000,-8223.50016625,0.00033097,2]
[421722015,1778063444000,-1082.9269034,0.00032359,2]
[421722019,1778063444000,-675.0,0.00032794,120]
[421722100,1778063445000,-2586.85809042,0.00034183,7]
[421722081,1778063445000,-151.0,0.00034183,30]
[421722087,1778063445000,-500.0,0.00034183,30]
[421722089,1778063445000,-500.0,0.00034183,30]
[421722090,1778063445000,-500.0,0.00034183,30]
[421722088,1778063445000,-500.0,0.00034183,30]
[421722092,1778063445000,-500.0,0.00034183,30]
[421722091,1778063445000,-500.0,0.00034183,30]
[421722097,1778063445000,-2319.72410669,0.00034183,7]
[421722079,1778063445000,-151.0,0.00034183,30]
[421722082,1778063445000,-151.0,0.00034183,30]
[421722099,1778063445000,-2494.55939289,0.00034183,7]
[421722102,1778063445000,-2781.82699784,0.00034183,7]
[421722098,1778063445000,-2405.55389864,0.00034183,7]
[421722093,1778063445000,-500.0,0.00034183,30]
[421722094,1778063445000,-2080.17592889,0.00034183,7]
[421722101,1778063445000,-2682.57183977,0.00034183,7]
[421722095,1778063445000,-2157.14243826,0.00034183,7]
[421722104,1778063445000,-2991.49051684,0.00034183,7]
[421722113,1778063445000,-200.0,0.00034185,2]
[421722086,1778063445000,-500.0,0.00034183,30]
[421722112,1778063445000,-1394.6151465,0.00034185,2]
[421722096,1778063445000,-2236.95670848,0.00034183,7]
[421722080,1778063445000,-151.0,0.00034183,30]
[421722069,1778063445000,-500.0,0.00034183,30]
[421722085,1778063445000,-500.0,0.00034183,30]
[421722114,1778063445000,-250.0,0.00034185,120]
[421722058,1778063445000,-500.0,0.00034183,30]
[421722059,1778063445000,-151.0,0.00034183,30]
[421722062,1778063445000,-151.0,0.00034183,30]
[421722060,1778063445000,-500.0,0.00034183,30]
[421722057,1778063445000,-151.0,0.00034183,30]
[421722061,1778063445000,-500.0,0.00034183,30]
[421722063,1778063445000,-151.0,0.00034183,30]
[421722066,1778063445000,-500.0,0.00034183,30]
[421722067,1778063445000,-500.0,0.00034183,30]
[421722065,1778063445000,-151.0,0.00034183,30]
[421722068,1778063445000,-151.0,0.00034183,30]
[421722064,1778063445000,-500.0,0.00034183,30]
[421722076,1778063445000,-151.0,0.00034183,30]
[421722075,1778063445000,-222.77423399,0.00034183,30]
[421722071,1778063445000,-500.0,0.00034183,30]
[421722070,1778063445000,-151.0,0.00034183,30]
[421722072,1778063445000,-151.0,0.00034183,30]
[421722073,1778063445000,-500.0,0.00034183,30]
[421722074,1778063445000,-151.0,0.00034183,30]
[421722078,1778063445000,-151.0,0.00034183,30]
[421722083,1778063445000,-151.0,0.00034183,30]
[421722077,1778063445000,-151.0,0.00034183,30]
[421722084,1778063445000,-151.0,0.00034183,30]
[421722103,1778063445000,-2884.75459676,0.00034183,7]
[421722153,1778063445000,-284.0,0.00035229,30]
[421722109,1778063445000,-152.649333,0.00034183,7]
[421722130,1778063445000,-243.0,0.00034435,120]
[421722132,1778063445000,-15715.38,0.00034544,60]
[421722128,1778063445000,-675.0,0.00034434,120]
[421722134,1778063445000,-746.0,0.00034592,120]
[421722141,1778063445000,-291.87508442,0.00034721,2]
[421722144,1778063445000,-151.0,0.00034795,2]
[421722143,1778063445000,-8223.50016625,0.00034773,2]
[421722145,1778063445000,-682.21239189,0.00034795,2]
[421722146,1778063445000,-223.21,0.000348,30]
[421722147,1778063445000,-502.0,0.00034873,10]
[421722137,1778063445000,-161.0,0.00034634,120]
[421722149,1778063445000,-152.0,0.00035228,30]
[421722151,1778063445000,-151.0,0.00035229,30]
[421722142,1778063445000,-3056.26088062,0.00034731,2]
[421722152,1778063445000,-160.0,0.00035229,30]
[421722150,1778063445000,-262.0,0.00035229,30]
[421722156,1778063445000,-177.96,0.00035319,2]
[421722155,1778063445000,-1500.0,0.00035268,5]
[421722157,1778063445000,-500.0,0.00035376,7]
[421722158,1778063445000,-3056.26088062,0.00035593,2]
[421722159,1778063445000,-8223.50016625,0.00035611,2]
[421722115,1778063445000,-280.86,0.00034185,120]
[421722148,1778063445000,-150.0,0.00035,2]
[421722129,1778063445000,-405.0,0.00034435,120]
[421722154,1778063445000,-694.55742345,0.00035256,2]
[421722138,1778063445000,-2000.0,0.00034713,2]
[421722108,1778063445000,-151.0,0.00034183,7]
[421722139,1778063445000,-1000.0,0.00034721,5]
[421722106,1778063445000,-152.649333,0.00034183,7]
[421722111,1778063445000,-500.0,0.00034184,120]
[421722107,1778063445000,-152.649333,0.00034183,7]
[421722110,1778063445000,-500.0,0.00034184,30]
[421722116,1778063445000,-200.0,0.00034185,2]
[421722119,1778063445000,-152.0,0.00034228,30]
[421722120,1778063445000,-262.0,0.00034229,30]
[421722121,1778063445000,-151.0,0.00034229,30]
[421722118,1778063445000,-310.0,0.00034192,35]
[421722117,1778063445000,-150.0,0.0003419,2]
[421722105,1778063445000,-152.649333,0.00034183,7]
[421722136,1778063445000,-177.94,0.00034633,2]
[421722122,1778063445000,-151.0,0.00034229,30]
[421722124,1778063445000,-157.89,0.00034247,30]
[421722123,1778063445000,-284.0,0.00034229,30]
[421722125,1778063445000,-152.0,0.00034296,7]
[421722126,1778063445000,-254.44,0.000343,30]
[421722133,1778063445000,-447.0,0.00034568,120]
[421722135,1778063445000,-268.0,0.00034604,120]
[421722131,1778063445000,-165.0,0.00034521,30]
[421722140,1778063445000,-500.0,0.00034721,5]
[421722127,1778063445000,-162.0,0.00034309,120]
[421722195,1778063446000,-659.01784,0.00036136,7]
[421722202,1778063446000,-178.753822,0.00036136,7]
[421722200,1778063446000,-782.951192,0.00036136,7]
[421722201,1778063446000,-782.951192,0.00036136,7]
[421722213,1778063446000,-1420.133086,0.00036136,7]
[421722194,1778063446000,-659.01784,0.00036136,7]
[421722192,1778063446000,-908.695531,0.00036136,7]
[421722188,1778063446000,-150.0,0.00036032,7]
[421722197,1778063446000,-659.01784,0.00036136,7]
[421722186,1778063446000,-150.0,0.00036015,7]
[421722193,1778063446000,-908.695531,0.00036136,7]
[421722196,1778063446000,-659.01784,0.00036136,7]
[421722205,1778063446000,-782.951192,0.00036136,7]
[421722199,1778063446000,-151.0,0.00036136,7]
[421722203,1778063446000,-782.951192,0.00036136,7]
[421722204,1778063446000,-178.753822,0.00036136,7]
[421722210,1778063446000,-185.173429,0.00036136,7]
[421722206,1778063446000,-178.753822,0.00036136,7]
[421722207,1778063446000,-178.753822,0.00036136,7]
[421722212,1778063446000,-185.173429,0.00036136,7]
[421722211,1778063446000,-185.173429,0.00036136,7]
[421722208,1778063446000,-185.173429,0.00036136,7]
[421722189,1778063446000,-150.0,0.00036121,7]
[421722198,1778063446000,-151.0,0.00036136,7]
[421722185,1778063446000,-150.0,0.00035902,7]
[421722160,1778063446000,-500.0,0.00035616,5]
[421722183,1778063446000,-1000.0,0.000359,2]
[421722214,1778063446000,-1420.133086,0.00036136,7]
[421722161,1778063446000,-500.0,0.00035616,5]
[421722164,1778063446000,-150.0,0.00035655,7]
[421722165,1778063446000,-150.0,0.00035655,7]
[421722163,1778063446000,-150.0,0.00035655,7]
[421722162,1778063446000,-150.0,0.00035655,7]
[421722166,1778063446000,-150.0,0.00035655,7]
[421722168,1778063446000,-151.0,0.00035697,14]
[421722178,1778063446000,-500.0,0.00035898,120]
[421722179,1778063446000,-150.0,0.00035899,2]
[421722171,1778063446000,-310.0,0.00035766,39]
[421722184,1778063446000,-882.0,0.000359,2]
[421722169,1778063446000,-223.21,0.000357,30]
[421722174,1778063446000,-500.0,0.00035863,5]
[421722175,1778063446000,-517.16375829,0.00035863,5]
[421722177,1778063446000,-150.0,0.00035888,7]
[421722167,1778063446000,-150.0,0.00035655,7]
[421722172,1778063446000,-2000.0,0.00035816,5]
[421722170,1778063446000,-152.0,0.00035701,8]
[421722173,1778063446000,-150.0,0.00035843,7]
[421722180,1778063446000,-550.11870044,0.000359,120]
[421722182,1778063446000,-900.0,0.000359,13]
[421722191,1778063446000,-908.695531,0.00036136,7]
[421722187,1778063446000,-162.0,0.00036025,120]
[421722176,1778063446000,-500.0,0.00035863,5]
[421722215,1778063446000,-1420.133086,0.00036136,7]
[421722190,1778063446000,-908.695531,0.00036136,7]
[421722218,1778063446000,-157.611823,0.00036136,7]
[421722247,1778063446000,-151.0,0.00036229,30]
[421722250,1778063446000,-178.0,0.00036243,2]
[421722248,1778063446000,-284.0,0.00036229,30]
[421722246,1778063446000,-262.0,0.00036229,30]
[421722254,1778063446000,-223.21,0.000363,30]
[421722255,1778063446000,-10652.17309792,0.00036301,2]
[421722249,1778063446000,-331.59681892,0.00036243,2]
[421722252,1778063446000,-151.0,0.00036246,2]
[421722251,1778063446000,-10272.10520533,0.00036246,2]
[421722253,1778063446000,-447.0,0.00036297,120]
[421722257,1778063446000,-746.0,0.00036322,120]
[421722245,1778063446000,-152.0,0.00036228,30]
[421722260,1778063446000,-11046.30350255,0.00036356,2]
[421722258,1778063446000,-268.0,0.00036335,120]
[421722261,1778063446000,-151.0,0.00036356,2]
[421722266,1778063446000,-1250.0,0.00036401,10]
[421722262,1778063446000,-2500.0,0.00036364,5]
[421722267,1778063446000,-564.0,0.00036408,30]
[421722264,1778063446000,-150.0,0.00036375,7]
[421722265,1778063446000,-150.0,0.00036398,7]
[421722259,1778063446000,-150.0,0.00036354,7]
[421722269,1778063446000,-150.0,0.00036409,7]
[421722268,1778063446000,-554.0,0.00036408,30]
[421722216,1778063446000,-1420.133086,0.00036136,7]
[421722263,1778063446000,-161.0,0.00036365,120]
[421722270,1778063446000,-1000.0,0.0003641,5]
[421722256,1778063446000,-151.0,0.00036301,2]
[421722243,1778063446000,-151.0,0.00036191,2]
[421722244,1778063446000,-150.0,0.00036221,7]
[421722226,1778063446000,-578.20924308,0.00036136,2]
[421722228,1778063446000,-1428.38747117,0.00036136,2]
[421722229,1778063446000,-743.50770149,0.00036136,2]
[421722221,1778063446000,-157.611823,0.00036136,7]
[421722223,1778063446000,-370.317762,0.00036136,7]
[421722220,1778063446000,-157.611823,0.00036136,7]
[421722217,1778063446000,-380.41984111,0.00036136,2]
[421722224,1778063446000,-370.317762,0.00036136,7]
[421722219,1778063446000,-157.611823,0.00036136,7]
[421722222,1778063446000,-370.317762,0.00036136,7]
[421722225,1778063446000,-370.317762,0.00036136,7]
[421722230,1778063446000,-151.0,0.00036136,2]
[421722227,1778063446000,-9552.16786547,0.00036136,2]
[421722233,1778063446000,-151.0,0.00036136,2]
[421722231,1778063446000,-151.0,0.00036136,2]
[421722236,1778063446000,-150.0,0.0003615,7]
[421722235,1778063446000,-197.28170207,0.00036136,2]
[421722237,1778063446000,-219.7,0.00036153,30]
[421722232,1778063446000,-174.61919141,0.00036136,2]
[421722238,1778063446000,-675.0,0.00036156,120]
[421722234,1778063446000,-156.587,0.00036136,2]
[421722239,1778063446000,-405.0,0.00036157,120]
[421722241,1778063446000,-502.0,0.00036162,11]
[421722240,1778063446000,-243.0,0.00036157,120]
[421722242,1778063446000,-9905.5980765,0.00036191,2]
[421722305,1778063447000,-12774.14957409,0.00036576,2]
[421722296,1778063447000,-152.649333,0.00036457,7]
[421722310,1778063447000,-13246.79310833,0.00036631,2]
[421722309,1778063447000,-150.0,0.00036598,7]
[421722302,1778063447000,-151.0,0.00036521,2]
[421722300,1778063447000,-272.43,0.00036521,10]
[421722306,1778063447000,-151.0,0.00036576,2]
[421722304,1778063447000,-984.86,0.00036557,10]
[421722301,1778063447000,-12318.36988823,0.00036521,2]
[421722303,1778063447000,-497.14,0.00036537,2]
[421722311,1778063447000,-151.0,0.00036631,2]
[421722307,1778063447000,-680.73,0.00036581,10]
[421722308,1778063447000,-150.0,0.00036587,7]
[421722323,1778063447000,-250.0,0.00036703,2]
[421722312,1778063447000,-1163.59,0.00036633,10]
[421722314,1778063447000,-694.55742345,0.00036676,2]
[421722315,1778063447000,-1481.23780761,0.00036684,2]
[421722316,1778063447000,-771.01748645,0.00036684,2]
[421722317,1778063447000,-181.08010149,0.00036684,2]
[421722321,1778063447000,-250.0,0.00036703,2]
[421722318,1778063447000,-13736.92445334,0.00036686,2]
[421722322,1778063447000,-250.0,0.00036703,2]
[421722320,1778063447000,-250.0,0.00036703,2]
[421722319,1778063447000,-151.0,0.00036686,2]
[421722325,1778063447000,-250.0,0.00036703,2]
[421722313,1778063447000,-150.0,0.00036645,7]
[421722299,1778063447000,-151.0,0.00036466,2]
[421722271,1778063447000,-1000.0,0.0003641,5]
[421722297,1778063447000,-500.0,0.00036457,5]
[421722324,1778063447000,-250.0,0.00036703,2]
[421722274,1778063447000,-371.40886,0.00036412,7]
[421722272,1778063447000,-11455.01673214,0.00036411,2]
[421722278,1778063447000,-151.0,0.00036412,7]
[421722273,1778063447000,-151.0,0.00036411,2]
[421722276,1778063447000,-371.40886,0.00036412,7]
[421722277,1778063447000,-371.40886,0.00036412,7]
[421722275,1778063447000,-371.40886,0.00036412,7]
[421722279,1778063447000,-274.197896,0.00036412,7]
[421722280,1778063447000,-151.0,0.00036412,7]
[421722281,1778063447000,-767.113323,0.00036412,7]
[421722283,1778063447000,-389.000583,0.00036412,7]
[421722284,1778063447000,-767.113323,0.00036412,7]
[421722282,1778063447000,-389.000583,0.00036412,7]
[421722285,1778063447000,-389.000583,0.00036412,7]
[421722289,1778063447000,-1000.0,0.00036438,5]
[421722286,1778063447000,-767.113323,0.00036412,7]
[421722288,1778063447000,-767.113323,0.00036412,7]
[421722287,1778063447000,-389.000583,0.00036412,7]
[421722291,1778063447000,-3056.26088062,0.00036454,2]
[421722290,1778063447000,-8223.50016625,0.00036448,2]
[421722292,1778063447000,-152.649333,0.00036457,7]
[421722293,1778063447000,-152.649333,0.00036457,7]
[421722294,1778063447000,-152.649333,0.00036457,7]
[421722298,1778063447000,-11878.85235123,0.00036466,2]
[421722295,1778063447000,-151.0,0.00036457,7]
[421722331,1778063447000,-571.0,0.00036738,30]
[421722326,1778063447000,-250.0,0.00036703,2]
[421722335,1778063447000,-294.47,0.000368,90]
[421722370,1778063447000,-367.92,0.00036997,30]
[421722361,1778063447000,-151.0,0.00036987,7]
[421722359,1778063447000,-151.0,0.00036987,7]
[421722362,1778063447000,-151.0,0.00036987,7]
[421722364,1778063447000,-151.0,0.00036987,7]
[421722363,1778063447000,-181.714045,0.00036987,7]
[421722368,1778063447000,-151.0,0.00036987,7]
[421722367,1778063447000,-151.0,0.00036987,7]
[421722369,1778063447000,-151.0,0.00036987,7]
[421722365,1778063447000,-181.714045,0.00036987,7]
[421722366,1778063447000,-151.0,0.00036987,7]
[421722375,1778063447000,-214.60306816,0.00037,10]
[421722360,1778063447000,-181.714045,0.00036987,7]
[421722374,1778063447000,-151.0,0.00037,7]
[421722373,1778063447000,-4500.0,0.00037,2]
[421722380,1778063447000,-150.0,0.00037095,7]
[421722372,1778063447000,-4685.30481988,0.00037,3]
[421722376,1778063447000,-214.60306816,0.00037,7]
[421722371,1778063447000,-365.0,0.00037,2]
[421722377,1778063447000,-1000.0,0.00037005,5]
[421722378,1778063447000,-150.0,0.00037053,7]
[421722382,1778063447000,-150.0,0.0003714,7]
[421722383,1778063447000,-150.0,0.00037147,2]
[421722385,1778063447000,-150.0,0.00037147,2]
[421722332,1778063447000,-152.0,0.00036743,7]
[421722384,1778063447000,-150.0,0.00037147,2]
[421722381,1778063447000,-152.0,0.00037106,9]
[421722354,1778063447000,-925.08,0.00036972,10]
[421722379,1778063447000,-310.0,0.00037072,43]
[421722355,1778063447000,-150.0,0.00036975,7]
[421722333,1778063447000,-152.0,0.00036743,7]
[421722357,1778063447000,-1724.4,0.00036987,10]
[421722334,1778063447000,-150.0,0.00036787,7]
[421722327,1778063447000,-250.0,0.00036703,2]
[421722328,1778063447000,-260.0,0.00036703,2]
[421722330,1778063447000,-150.0,0.00036735,7]
[421722329,1778063447000,-1000.0,0.00036712,5]
[421722337,1778063447000,-150.0,0.0003682,7]
[421722336,1778063447000,-1634.5399902,0.000368,2]
[421722341,1778063447000,-1450.0,0.0003684,2]
[421722345,1778063447000,-1450.0,0.0003684,2]
[421722339,1778063447000,-1450.0,0.0003684,2]
[421722343,1778063447000,-1450.0,0.0003684,2]
[421722346,1778063447000,-1450.0,0.0003684,2]
[421722351,1778063447000,-1250.0,0.00036918,10]
[421722353,1778063447000,-1500.0,0.00036958,5]
[421722338,1778063447000,-1450.0,0.0003684,2]
[421722356,1778063447000,-150.0,0.00036975,7]
[421722352,1778063447000,-309.24927612,0.00036958,5]
[421722350,1778063447000,-1356.57211453,0.00036912,5]
[421722348,1778063447000,-150.0,0.00036893,7]
[421722358,1778063447000,-181.714045,0.00036987,7]
[421722347,1778063447000,-1079.0,0.0003684,2]
[421722340,1778063447000,-1450.0,0.0003684,2]
[421722344,1778063447000,-1450.0,0.0003684,2]
[421722342,1778063447000,-1450.0,0.0003684,2]
[421722349,1778063447000,-301.0,0.00036911,2]
[421722423,1778063448000,-350.0,0.00037332,2]
[421722421,1778063448000,-151.0,0.00037316,7]
[421722430,1778063448000,-350.0,0.00037332,2]
[421722428,1778063448000,-350.0,0.00037332,2]
[421722426,1778063448000,-350.0,0.00037332,2]
[421722412,1778063448000,-151.0,0.00037316,7]
[421722413,1778063448000,-151.0,0.00037316,7]
[421722422,1778063448000,-151.0,0.00037316,7]
[421722420,1778063448000,-220.59085,0.00037316,7]
[421722410,1778063448000,-151.0,0.00037316,7]
[421722425,1778063448000,-350.0,0.00037332,2]
[421722429,1778063448000,-350.0,0.00037332,2]
[421722424,1778063448000,-350.0,0.00037332,2]
[421722435,1778063448000,-150.0,0.00037456,7]
[421722432,1778063448000,-150.0,0.00037353,7]
[421722442,1778063448000,-1268.0,0.00037503,2]
[421722443,1778063448000,-1221.0,0.00037503,2]
[421722433,1778063448000,-150.0,0.00037388,7]
[421722431,1778063448000,-342.0,0.00037332,2]
[421722438,1778063448000,-150.0,0.00037456,7]
[421722434,1778063448000,-502.0,0.00037452,13]
[421722436,1778063448000,-150.0,0.00037456,7]
[421722441,1778063448000,-150.0,0.00037503,2]
[421722439,1778063448000,-150.0,0.00037456,7]
[421722440,1778063448000,-185.0,0.00037456,7]
[421722437,1778063448000,-150.0,0.00037456,7]
[421722411,1778063448000,-269.791159,0.00037316,7]
[421722427,1778063448000,-350.0,0.00037332,2]
[421722414,1778063448000,-151.0,0.00037316,7]
[421722391,1778063448000,-265.0,0.00037164,7]
[421722407,1778063448000,-3056.26088062,0.00037316,2]
[421722444,1778063448000,-6043.0,0.00037503,2]
[421722387,1778063448000,-197.0,0.00037147,2]
[421722394,1778063448000,-152.0,0.00037228,30]
[421722388,1778063448000,-150.0,0.00037164,7]
[421722386,1778063448000,-150.0,0.00037147,2]
[421722389,1778063448000,-150.0,0.00037164,7]
[421722392,1778063448000,-189.47926866,0.000372,120]
[421722393,1778063448000,-189.47926864,0.000372,120]
[421722390,1778063448000,-150.0,0.00037164,7]
[421722395,1778063448000,-262.0,0.00037229,30]
[421722396,1778063448000,-151.0,0.00037229,30]
[421722397,1778063448000,-284.0,0.00037229,30]
[421722399,1778063448000,-799.54513345,0.00037232,2]